fUSD/lending_fUSD_20251122
["ID","MTS","AMOUNT","RATE_DAILY","PERIOD"]
[394629648,1763795488709,-162.95436659,0.0001775,2]
[394629649,1763795488718,-500.0,0.00017808,2]
[394629650,1763795488728,-500.0,0.00017808,2]
[394629651,1763795488739,-500.0,0.00017808,2]
[394629652,1763795488749,-505.05961919,0.00017808,2]
[394629653,1763795488758,-500.0,0.00017808,2]
[394629654,1763795488768,-500.0,0.00017808,2]
[394629655,1763795488777,-500.0,0.00017808,2]
[394629656,1763795488788,-929.65,0.00017808,2]
[394629657,1763795488798,-500.0,0.00017808,2]
[394629658,1763795488808,-500.0,0.00017808,2]
[394629659,1763795488819,-1055.61,0.00017808,2]
[394629660,1763795488828,-500.0,0.00017808,2]
[394629661,1763795488838,-949.05,0.00017808,2]
[394629662,1763795488848,-500.0,0.00017808,2]
[394629663,1763795488858,-652.47,0.00017808,2]
[394629664,1763795488868,-853.84,0.00017808,2]
[394629665,1763795488878,-640.0,0.00017808,2]
[394629666,1763795488888,-539.50665888,0.00017808,2]
[394629667,1763795488897,-500.0,0.00017808,2]
[394629668,1763795488907,-931.55,0.00017808,2]
[394629669,1763795488917,-1047.79,0.00017808,2]
[394629670,1763795488927,-690.99,0.00017808,2]
[394629671,1763795488937,-621.83,0.00017808,2]
[394629672,1763795489024,-557.8539518,0.00017808,2]
[394629673,1763795489034,-500.0,0.00017808,2]
[394629674,1763795489044,-880.46,0.00017808,2]
[394629675,1763795489053,-500.0,0.00017808,2]
[394629676,1763795489062,-500.0,0.00017808,2]
[394629677,1763795489071,-500.0,0.00017808,2]
[394629678,1763795489081,-500.0,0.00017808,2]
[394629679,1763795489090,-500.0,0.00017808,2]
[394629680,1763795489101,-500.0,0.00017808,2]
[394629681,1763795489110,-366.2674801,0.00017808,2]
[394629682,1763795489120,-172.00732105,0.00017808,2]
[394629683,1763795489130,-500.0,0.00017808,2]
[394629684,1763795489139,-922.69,0.00017808,2]
[394629685,1763795489149,-500.0,0.00017808,2]
[394629686,1763795489158,-500.0,0.00017808,2]
[394629687,1763795489167,-1154.65,0.00017808,2]
[394629688,1763795489176,-500.0,0.00017808,2]
[394629689,1763795489185,-500.0,0.00017808,2]
[394629690,1763795489194,-500.0,0.00017808,2]
[394629691,1763795489203,-928.41,0.00017808,2]
[394629692,1763795489214,-500.0,0.00017808,2]
[394629693,1763795489224,-500.0,0.00017808,2]
[394629694,1763795489234,-753.82,0.00017808,2]
[394629695,1763795489244,-212.58319448,0.00017808,2]
[394629696,1763795489253,-500.0,0.00017808,2]
[394629697,1763795489262,-500.0,0.00017808,2]
[394629698,1763795489271,-500.0,0.00017808,2]
[394629699,1763795489281,-678.17,0.00017808,2]
[394629700,1763795489290,-500.0,0.00017808,2]
[394629701,1763795489300,-500.0,0.00017808,2]
[394629702,1763795489309,-500.0,0.00017808,2]
[394629703,1763795489317,-571.38,0.00017808,2]
[394629704,1763795489326,-1167.28,0.00017808,2]
[394629705,1763795489336,-816.49,0.00017808,2]
[394629706,1763795489345,-609.46,0.00017808,2]
[394629707,1763795489355,-500.0,0.00017808,2]
[394629708,1763795489367,-1508.97,0.00017808,2]
[394629709,1763795489377,-500.0,0.00017808,2]
[394629710,1763795489387,-990.34,0.00017808,2]
[394629711,1763795489396,-545.88,0.00017808,2]
[394629712,1763795489406,-500.0,0.00017808,2]
[394629713,1763795489415,-543.02,0.00017808,2]
[394629714,1763795489424,-646.95,0.00017808,2]
[394629715,1763795489434,-500.0,0.00017808,2]
[394629716,1763795489443,-500.0,0.00017808,2]
[394629717,1763795489451,-500.0,0.00017808,2]
[394629718,1763795489462,-669.39,0.00017808,2]
[394629719,1763795489472,-500.0,0.00017808,2]
[394629720,1763795489482,-500.0,0.00017808,2]
[394629721,1763795489492,-796.52,0.00017808,2]
[394629722,1763795489502,-549.37,0.00017808,2]
[394629723,1763795489512,-991.62,0.00017808,2]
[394629724,1763795489521,-500.0,0.00017808,2]
[394629725,1763795489532,-633.17,0.00017808,2]
[394629726,1763795489542,-500.0,0.00017808,2]
[394629727,1763795489551,-500.0,0.00017808,2]
[394629728,1763795489560,-751.7,0.00017808,2]
[394629729,1763795489569,-746.32,0.00017808,2]
[394629730,1763795489578,-1285.18,0.00017808,2]
[394629731,1763795489588,-500.0,0.00017808,2]
[394629732,1763795489597,-500.0,0.00017808,2]
[394629733,1763795489607,-500.0,0.00017808,2]
[394629734,1763795489616,-500.0,0.00017808,2]
[394629735,1763795489625,-663.91,0.00017808,2]
[394629736,1763795489635,-652.22,0.00017808,2]
[394629737,1763795489644,-1913.84,0.00017808,2]
[394629738,1763795489653,-820.04,0.00017808,2]
[394629739,1763795489667,-779.07,0.00017808,2]
[394629740,1763795489676,-500.0,0.00017808,2]
[394629741,1763795489685,-710.26,0.00017808,2]
[394629742,1763795489694,-972.58,0.00017808,2]
[394629743,1763795489704,-554.86707392,0.00017808,2]
[394629744,1763795489714,-500.0,0.00017808,2]
[394629745,1763795489723,-1150.96,0.00017808,2]
[394629746,1763795489733,-500.0,0.00017808,2]
[394629747,1763795489743,-261.51392233,0.00017808,2]
[394629748,1763795489752,-500.0,0.00017808,2]
[394629749,1763795489762,-500.0,0.00017808,2]
[394629750,1763795489771,-329.41787743,0.00017808,2]
[394629751,1763795489780,-500.0,0.00017808,2]
[394629752,1763795489790,-835.25,0.00017808,2]
[394629753,1763795489799,-783.43,0.00017808,2]
[394629754,1763795489808,-500.0,0.00017808,2]
[394629755,1763795489817,-500.0,0.00017808,2]
[394629756,1763795489826,-555.01,0.00017808,2]
[394629757,1763795489836,-500.0,0.00017808,2]
[394629758,1763795489845,-322.07648745,0.00017808,2]
[394629759,1763795489854,-500.0,0.00017808,2]
[394629760,1763795489863,-567.49,0.00017808,2]
[394629761,1763795489872,-500.0,0.00017808,2]
[394629762,1763795489881,-500.0,0.00017808,2]
[394629763,1763795489891,-862.12,0.00017808,2]
[394629764,1763795489902,-712.13,0.00017808,2]
[394629765,1763795489911,-882.47,0.00017808,2]
[394629766,1763795489920,-500.0,0.00017808,2]
[394629767,1763795489929,-500.0,0.00017808,2]
[394629768,1763795489938,-930.74,0.00017808,2]
[394629769,1763795489948,-500.0,0.00017808,2]
[394629770,1763795489957,-500.0,0.00017808,2]
[394629771,1763795489967,-500.0,0.00017808,2]
[394629772,1763795489975,-986.57,0.00017808,2]
[394629773,1763795489985,-500.0,0.00017808,2]
[394629774,1763795489994,-684.09,0.00017808,2]
[394629775,1763795490004,-622.4,0.00017808,2]
[394629776,1763795490014,-516.33676283,0.00017808,2]
[394629777,1763795490023,-500.0,0.00017808,2]
[394629778,1763795490032,-636.78,0.00017808,2]
[394629779,1763795490041,-903.87,0.00017808,2]
[394629780,1763795490050,-552.67,0.00017808,2]
[394629781,1763795490059,-650.37,0.00017808,2]
[394629782,1763795490068,-500.0,0.00017808,2]
[394629783,1763795490078,-949.19,0.00017808,2]
[394629784,1763795490087,-500.0,0.00017808,2]
[394629785,1763795490097,-511.73,0.00017808,2]
[394629786,1763795490109,-500.0,0.00017808,2]
[394629787,1763795490118,-1022.1,0.00017808,2]
[394629788,1763795490128,-500.0,0.00017808,2]
[394629789,1763795490137,-596.89,0.00017808,2]
[394629790,1763795490148,-840.6,0.00017808,2]
[394629791,1763795490158,-906.66,0.00017808,2]
[394629792,1763795490167,-500.0,0.00017808,2]
[394629793,1763795490180,-683.84,0.00017808,2]
[394629794,1763795490189,-802.44,0.00017808,2]
[394629795,1763795490200,-500.0,0.00017808,2]
[394629796,1763795490209,-500.0,0.00017808,2]
[394629797,1763795490219,-500.0,0.00017808,2]
[394629798,1763795490228,-500.0,0.00017808,2]
[394629799,1763795490237,-500.0,0.00017808,2]
[394629800,1763795490247,-1663.26,0.00017808,2]
[394629801,1763795490257,-500.0,0.00017808,2]
[394629802,1763795490266,-186.80229456,0.00017808,2]
[394629803,1763795490276,-590.17,0.00017808,2]
[394629804,1763795490285,-500.0,0.00017808,2]
[394629805,1763795490294,-500.0,0.00017808,2]
[394629806,1763795490304,-710.85,0.00017808,2]
[394629807,1763795490313,-642.27,0.00017808,2]
[394629808,1763795490323,-878.89,0.00017808,2]
[394629809,1763795490333,-500.0,0.00017808,2]
[394629810,1763795490343,-500.0,0.00017808,2]
[394629811,1763795490352,-500.0,0.00017808,2]
[394629812,1763795490361,-554.72,0.00017808,2]
[394629813,1763795490371,-500.0,0.00017808,2]
[394629814,1763795490381,-500.0,0.00017808,2]
[394629815,1763795490390,-500.0,0.00017808,2]
[394629816,1763795490399,-571.32,0.00017808,2]
[394629817,1763795490409,-664.81,0.00017808,2]
[394629818,1763795490419,-500.0,0.00017808,2]
[394629819,1763795490428,-500.0,0.00017808,2]
[394629820,1763795490438,-500.0,0.00017808,2]
[394629821,1763795490447,-500.0,0.00017808,2]
[394629822,1763795490457,-1071.02,0.00017808,2]
[394629823,1763795490466,-907.63,0.00017808,2]
[394629824,1763795490475,-500.0,0.00017808,2]
[394629825,1763795490484,-571.23,0.00017808,2]
[394629826,1763795490493,-500.0,0.00017808,2]
[394629827,1763795490503,-500.0,0.00017808,2]
[394629828,1763795490512,-500.0,0.00017808,2]
[394629829,1763795490521,-1282.27,0.00017808,2]
[394629830,1763795490531,-510.31,0.00017808,2]
[394629831,1763795490540,-500.0,0.00017808,2]
[394629832,1763795490550,-500.0,0.00017808,2]
[394629833,1763795490559,-551.38,0.00017808,2]
[394629834,1763795490568,-500.0,0.00017808,2]
[394629835,1763795490577,-500.0,0.00017808,2]
[394629836,1763795490586,-500.0,0.00017808,2]
[394629837,1763795490596,-500.0,0.00017808,2]
[394629838,1763795490605,-500.0,0.00017808,2]
[394629839,1763795490614,-4611.01,0.00017808,2]
[394629840,1763795490623,-559.84,0.00017808,2]
[394629841,1763795490633,-500.0,0.00017808,2]
[394629842,1763795490642,-378.12356283,0.00017808,2]
[394629843,1763795490651,-731.85,0.00017808,2]
[394629844,1763795490660,-500.0,0.00017808,2]
[394629845,1763795490669,-500.0,0.00017808,2]
[394629846,1763795490679,-921.22,0.00017808,2]
[394629847,1763795490688,-500.0,0.00017808,2]
[394629848,1763795490697,-500.0,0.00017808,2]
[394629849,1763795490706,-538.25,0.00017808,2]
[394629850,1763795490715,-1314.18,0.00017808,2]
[394629851,1763795490728,-564.41,0.00017808,2]
[394629852,1763795490742,-500.0,0.00017808,2]
[394629853,1763795490751,-745.5,0.00017808,2]
[394629854,1763795490762,-1084.77,0.00017808,2]
[394629855,1763795490780,-500.0,0.00017808,2]
[394629856,1763795490789,-500.0,0.00017808,2]
[394629857,1763795490798,-868.15,0.00017808,2]
[394629858,1763795490807,-500.0,0.00017808,2]
[394629859,1763795490816,-500.0,0.00017808,2]
[394629860,1763795490826,-1394.24,0.00017808,2]
[394629861,1763795490835,-833.98,0.00017808,2]
[394629862,1763795490844,-1003.9,0.00017808,2]
[394629863,1763795490853,-968.93,0.00017808,2]
[394629864,1763795490862,-500.0,0.00017808,2]
[394629865,1763795490871,-500.0,0.00017808,2]
[394629866,1763795490880,-500.0,0.00017808,2]
[394629867,1763795490889,-1270.78,0.00017808,2]
[394629868,1763795490899,-500.0,0.00017808,2]
[394629869,1763795490909,-591.78,0.00017808,2]
[394629870,1763795490918,-1323.25,0.00017808,2]
[394629871,1763795490928,-500.0,0.00017808,2]
[394629872,1763795490937,-500.0,0.00017808,2]
[394629873,1763795490946,-500.0,0.00017808,2]
[394629874,1763795490956,-960.48,0.00017808,2]
[394629875,1763795490965,-500.0,0.00017808,2]
[394629876,1763795490974,-1270.58,0.00017808,2]
[394629877,1763795490983,-1756.44,0.00017808,2]
[394629878,1763795490993,-5897.28,0.00017808,2]
[394629879,1763795491002,-300.0,0.00017808,2]
[394629880,1763795491011,-500.0,0.00017808,2]
[394629881,1763795491021,-673.29,0.00017808,2]
[394629882,1763795491030,-642.99,0.00017808,2]
[394629883,1763795491039,-500.0,0.00017808,2]
[394629884,1763795491048,-793.06,0.00017808,2]
[394629885,1763795491058,-539.56,0.00017808,2]
[394629886,1763795491067,-227.91603678,0.00017808,2]
[394629887,1763795491076,-500.0,0.00017808,2]
[394629888,1763795491086,-500.0,0.00017808,2]
[394629889,1763795491095,-551.26360831,0.00017808,2]
[394629890,1763795491108,-500.0,0.00017808,2]
[394629891,1763795491118,-1013.52,0.00017808,2]
[394629892,1763795491127,-500.0,0.00017808,2]
[394629893,1763795491136,-500.0,0.00017808,2]
[394629894,1763795491147,-500.0,0.00017808,2]
[394629895,1763795491156,-732.25,0.00017808,2]
[394629896,1763795491166,-500.0,0.00017808,2]
[394629897,1763795491175,-500.0,0.00017808,2]
[394629898,1763795491187,-3543.04,0.00017808,2]
[394629899,1763795491196,-500.0,0.00017808,2]
[394629900,1763795491206,-500.0,0.00017808,2]
[394629901,1763795491216,-313.34517264,0.00017808,2]
[394629902,1763795491225,-1235.15,0.00017808,2]
[394629903,1763795491235,-1277.22,0.00017808,2]
[394629904,1763795491244,-500.0,0.00017808,2]
[394629905,1763795491254,-500.0,0.00017808,2]
[394629906,1763795491264,-500.0,0.00017808,2]
[394629907,1763795491273,-505.16577543,0.00017808,2]
[394629908,1763795491283,-500.0,0.00017808,2]
[394629909,1763795491292,-500.0,0.00017808,2]
[394629910,1763795491302,-500.0,0.00017808,2]
[394629911,1763795491312,-1044.2,0.00017808,2]
[394629912,1763795491322,-740.95,0.00017808,2]
[394629913,1763795491332,-500.0,0.00017808,2]
[394629914,1763795491342,-264.01864584,0.00017808,2]
[394629915,1763795491352,-804.88,0.00017808,2]
[394629916,1763795491362,-500.0,0.00017808,2]
[394629917,1763795491371,-698.82,0.00017808,2]
[394629918,1763795491381,-726.81,0.00017808,2]
[394629919,1763795491390,-500.0,0.00017808,2]
[394629920,1763795491400,-500.0,0.00017808,2]
[394629921,1763795491410,-500.0,0.00017808,2]
[394629922,1763795491419,-500.0,0.00017808,2]
[394629923,1763795491429,-597.4,0.00017808,2]
[394629924,1763795491438,-691.58,0.00017808,2]
[394629925,1763795491447,-564.65,0.00017808,2]
[394629926,1763795491457,-500.0,0.00017808,2]
[394629927,1763795491467,-478.66061272,0.00017808,2]
[394629928,1763795491476,-500.0,0.00017808,2]
[394629929,1763795491487,-500.0,0.00017808,2]
[394629930,1763795491496,-500.0,0.00017808,2]
[394629931,1763795491506,-655.79,0.00017808,2]
[394629932,1763795491515,-500.0,0.00017808,2]
[394629933,1763795491525,-500.0,0.00017808,2]
[394629934,1763795491535,-782.5,0.00017808,2]
[394629935,1763795491544,-647.09,0.00017808,2]
[394629936,1763795491554,-500.0,0.00017808,2]
[394629937,1763795491564,-904.27,0.00017808,2]
[394629938,1763795491574,-1622.6,0.00017808,2]
[394629939,1763795491584,-169.69475747,0.00017808,2]
[394629940,1763795491594,-500.0,0.00017808,2]
[394629941,1763795491603,-733.12,0.00017808,2]
[394629942,1763795491613,-787.46,0.00017808,2]
[394629943,1763795491622,-500.0,0.00017808,2]
[394629944,1763795491632,-3465.48,0.00017808,2]
[394629945,1763795491642,-548.72181361,0.00017808,2]
[394629946,1763795491652,-500.0,0.00017808,2]
[394629947,1763795491661,-500.0,0.00017808,2]
[394629948,1763795491671,-500.0,0.00017808,2]
[394629949,1763795491680,-500.0,0.00017808,2]
[394629950,1763795491690,-1361.43,0.00017808,2]
[394629951,1763795491699,-500.0,0.00017808,2]
[394629952,1763795491710,-500.0,0.00017808,2]
[394629953,1763795491720,-517.54,0.00017808,2]
[394629954,1763795491730,-568.27138333,0.00017808,2]
[394629955,1763795491740,-500.0,0.00017808,2]
[394629956,1763795491749,-500.0,0.00017808,2]
[394629957,1763795491758,-500.0,0.00017808,2]
[394629958,1763795491768,-2776.22,0.00017808,2]
[394629959,1763795491778,-500.0,0.00017808,2]
[394629960,1763795491787,-953.39,0.00017808,2]
[394629961,1763795491797,-500.0,0.00017808,2]
[394629962,1763795491807,-679.39,0.00017808,2]
[394629963,1763795491817,-1700.59,0.00017808,2]
[394629964,1763795491826,-380.25232104,0.00017808,2]
[394629965,1763795491836,-500.0,0.00017808,2]
[394629966,1763795491845,-1365.73,0.00017808,2]
[394629967,1763795491855,-354.5153563,0.00017808,2]
[394629968,1763795491865,-1141.67,0.00017808,2]
[394629969,1763795491875,-1067.76,0.00017808,2]
[394629970,1763795491885,-500.0,0.00017808,2]
[394629971,1763795491895,-500.0,0.00017808,2]
[394629972,1763795491906,-500.0,0.00017808,2]
[394629973,1763795491917,-505.09,0.00017808,2]
[394629974,1763795491927,-597.03,0.00017808,2]
[394629975,1763795491938,-500.0,0.00017808,2]
[394629976,1763795491949,-500.0,0.00017808,2]
[394629977,1763795491959,-2836.92,0.00017808,2]
[394629978,1763795491969,-500.0,0.00017808,2]
[394629979,1763795491979,-1561.68,0.00017808,2]
[394629980,1763795491990,-549.36,0.00017808,2]
[394629981,1763795492000,-500.0,0.00017808,2]
[394629982,1763795492009,-500.0,0.00017808,2]
[394629983,1763795492019,-500.0,0.00017808,2]
[394629984,1763795492028,-500.0,0.00017808,2]
[394629985,1763795492038,-500.0,0.00017808,2]
[394629986,1763795492048,-1018.18,0.00017808,2]
[394629987,1763795492058,-759.31,0.00017808,2]
[394629988,1763795492068,-1213.88,0.00017808,2]
[394629989,1763795492080,-2177.24,0.00017808,2]
[394629990,1763795492091,-910.36,0.00017808,2]
[394629991,1763795492105,-500.0,0.00017808,2]
[394629992,1763795492116,-500.0,0.00017808,2]
[394629993,1763795492126,-500.0,0.00017808,2]
[394629994,1763795492137,-500.0,0.00017808,2]
[394629995,1763795492149,-1090.15,0.00017808,2]
[394629996,1763795492158,-672.23,0.00017808,2]
[394629997,1763795492167,-1094.76,0.00017808,2]
[394629998,1763795492177,-500.0,0.00017808,2]
[394629999,1763795492187,-500.0,0.00017808,2]
[394630000,1763795492197,-872.6,0.00017808,2]
[394630001,1763795492207,-500.0,0.00017808,2]
[394630002,1763795492216,-500.0,0.00017808,2]
[394630003,1763795492226,-500.0,0.00017808,2]
[394630004,1763795492237,-500.0,0.00017808,2]
[394630005,1763795492247,-500.0,0.00017808,2]
[394630006,1763795492256,-250.23789682,0.00017808,2]
[394630007,1763795492270,-8935.96,0.00017808,2]
[394630008,1763795492280,-1399.76,0.00017808,2]
[394630009,1763795492290,-2311.26,0.00017808,2]
[394630010,1763795492300,-626.87,0.00017808,2]
[394630011,1763795492309,-500.0,0.00017808,2]
[394630012,1763795492319,-773.67,0.00017808,2]
[394630013,1763795492329,-902.42,0.00017808,2]
[394630014,1763795492339,-500.0,0.00017808,2]
[394630015,1763795492348,-500.0,0.00017808,2]
[394630016,1763795492358,-531.43,0.00017808,2]
[394630017,1763795492368,-500.0,0.00017808,2]
[394630018,1763795492378,-2809.48,0.00017808,2]
[394630019,1763795492388,-500.0,0.00017808,2]
[394630020,1763795492398,-873.93,0.00017808,2]
[394630021,1763795492408,-819.4,0.00017808,2]
[394630022,1763795492417,-520.0,0.00017828,2]
[394630023,1763795492427,-618.0,0.00017828,2]
[394630024,1763795492437,-500.0,0.00017828,2]
[394630025,1763795492447,-726.0,0.00017828,2]
[394630026,1763795492457,-500.0,0.00017828,2]
[394630027,1763795492467,-500.0,0.00017828,2]
[394630028,1763795492477,-500.0,0.00017828,2]
[394630029,1763795492487,-500.0,0.00017828,2]
[394630030,1763795492497,-484.0,0.00017828,2]
[394630031,1763795492507,-168.0,0.00017859,2]
[394630032,1763795492517,-464.2803205,0.00017863,2]
[394630033,1763795492528,-500.0,0.00017863,2]
[394630034,1763795492538,-500.0,0.00017863,2]
[394630035,1763795492547,-500.0,0.00017863,2]
[394630036,1763795492557,-1209.88,0.00017863,2]
[394630037,1763795492566,-5154.75,0.00017863,2]
[394630038,1763795492576,-500.0,0.00017863,2]
[394630039,1763795492586,-995.45,0.00017863,2]
[394630040,1763795492597,-666.13,0.00017863,2]
[394630041,1763795492608,-500.0,0.00017863,2]
[394630042,1763795492619,-1192.89,0.00017863,2]
[394630043,1763795492630,-661.37,0.00017863,2]
[394630044,1763795492640,-719.39,0.00017863,2]
[394630045,1763795492650,-500.0,0.00017863,2]
[394630046,1763795492660,-500.0,0.00017863,2]
[394630047,1763795492670,-868.51,0.00017863,2]
[394630048,1763795492680,-618.38,0.00017863,2]
[394630049,1763795492691,-500.0,0.00017863,2]
[394630050,1763795492700,-1206.92,0.00017863,2]
[394630051,1763795492714,-659.86,0.00017863,2]
[394630052,1763795492724,-500.0,0.00017863,2]
[394630053,1763795492734,-500.0,0.00017863,2]
[394630054,1763795492746,-278.84770209,0.00017863,2]
[394630055,1763795492755,-500.0,0.00017863,2]
[394630056,1763795492765,-793.08,0.00017863,2]
[394630057,1763795492776,-500.0,0.00017863,2]
[394630058,1763795492786,-500.0,0.00017863,2]
[394630059,1763795492796,-500.0,0.00017863,2]
[394630060,1763795492807,-500.0,0.00017863,2]
[394630061,1763795492816,-752.21,0.00017863,2]
[394630062,1763795492826,-724.34,0.00017863,2]
[394630063,1763795492836,-858.11,0.00017863,2]
[394630064,1763795492846,-642.54,0.00017863,2]
[394630065,1763795492857,-500.0,0.00017863,2]
[394630066,1763795492869,-500.0,0.00017863,2]
[394630067,1763795492880,-1351.88,0.00017863,2]
[394630068,1763795492891,-583.12,0.00017863,2]
[394630069,1763795492902,-500.0,0.00017863,2]
[394630070,1763795492912,-500.0,0.00017863,2]
[394630071,1763795492923,-500.0,0.00017863,2]
[394630072,1763795492933,-500.0,0.00017863,2]
[394630073,1763795492943,-636.97,0.00017863,2]
[394630074,1763795492954,-500.0,0.00017863,2]
[394630075,1763795492965,-1333.56,0.00017863,2]
[394630076,1763795492975,-1003.71,0.00017863,2]
[394630077,1763795492985,-500.0,0.00017863,2]
[394630078,1763795492996,-859.95,0.00017863,2]
[394630079,1763795493007,-639.99,0.00017863,2]
[394630080,1763795493017,-500.0,0.00017863,2]
[394630081,1763795493027,-500.0,0.00017863,2]
[394630082,1763795493038,-1231.68,0.00017863,2]
[394630083,1763795493048,-500.0,0.00017863,2]
[394630084,1763795493058,-1105.87,0.00017863,2]
[394630085,1763795493069,-500.0,0.00017863,2]
[394630086,1763795493079,-500.0,0.00017863,2]
[394630087,1763795493089,-500.0,0.00017863,2]
[394630088,1763795493101,-1271.87,0.00017863,2]
[394630089,1763795493113,-864.09,0.00017863,2]
[394630090,1763795493123,-500.0,0.00017863,2]
[394630091,1763795493133,-668.75,0.00017863,2]
[394630092,1763795493143,-500.0,0.00017863,2]
[394630093,1763795493153,-1128.26,0.00017863,2]
[394630094,1763795493163,-500.0,0.00017863,2]
[394630095,1763795493173,-551.72840602,0.00017863,2]
[394630096,1763795493377,-500.0,0.00017863,2]
[394630097,1763795493406,-1020.48,0.00017863,2]
[394630098,1763795493415,-531.28243621,0.00017864,2]
[394630099,1763795493425,-400.0,0.00017864,2]
[394630100,1763795493434,-500.0,0.00017864,2]
[394630101,1763795493444,-500.0,0.00017864,2]
[394630102,1763795493453,-500.0,0.00017864,2]
[394630103,1763795493463,-1324.57,0.00017864,2]
[394630104,1763795493474,-694.0,0.00017864,2]
[394630105,1763795493483,-500.0,0.00017864,2]
[394630106,1763795493492,-500.0,0.00017864,2]
[394630107,1763795493502,-500.0,0.00017864,2]
[394630108,1763795493511,-500.0,0.00017864,2]
[394630109,1763795493521,-861.45,0.00017864,2]
[394630110,1763795493531,-778.01,0.00017864,2]
[394630111,1763795493542,-500.0,0.00017864,2]
[394630112,1763795493552,-500.0,0.00017864,2]
[394630113,1763795493562,-500.0,0.00017864,2]
[394630114,1763795493572,-500.0,0.00017864,2]
[394630115,1763795493581,-855.53,0.00017864,2]
[394630116,1763795493590,-810.8,0.00017864,2]
[394630117,1763795493601,-535.7,0.00017864,2]
[394630118,1763795493610,-799.75,0.00017864,2]
[394630119,1763795493620,-500.0,0.00017864,2]
[394630120,1763795493629,-532.93,0.00017864,2]
[394630121,1763795493639,-500.0,0.00017864,2]
[394630122,1763795493648,-853.67,0.00017864,2]
[394630123,1763795493658,-500.0,0.00017864,2]
[394630124,1763795493667,-500.0,0.00017864,2]
[394630125,1763795493676,-500.0,0.00017864,2]
[394630126,1763795493686,-500.0,0.00017864,2]
[394630127,1763795493696,-500.0,0.00017864,2]
[394630128,1763795493705,-500.0,0.00017864,2]
[394630129,1763795493716,-500.0,0.00017864,2]
[394630130,1763795493727,-971.94,0.00017864,2]
[394630131,1763795493736,-500.0,0.00017864,2]
[394630132,1763795493746,-500.0,0.00017864,2]
[394630133,1763795493757,-821.53,0.00017864,2]
[394630134,1763795493768,-818.36,0.00017864,2]
[394630135,1763795493778,-1074.73,0.00017864,2]
[394630136,1763795493787,-500.0,0.00017864,2]
[394630137,1763795493797,-500.0,0.00017864,2]
[394630138,1763795493806,-1035.77,0.00017864,2]
[394630139,1763795493818,-1218.66,0.00017864,2]
[394630140,1763795493827,-500.0,0.00017864,2]
[394630141,1763795493837,-616.89,0.00017864,2]
[394630142,1763795493846,-500.0,0.00017864,2]
[394630143,1763795493856,-666.17,0.00017864,2]
[394630144,1763795493865,-1022.43,0.00017864,2]
[394630145,1763795493875,-1113.68,0.00017864,2]
[394630146,1763795493884,-500.0,0.00017864,2]
[394630147,1763795493893,-964.69,0.00017864,2]